Workbook

Sheet overzicht
Z1: 720R-01-0223
A3: Beschrijving artikel (PPnr 55591) | H3: Open formaat | I3: 478,00 x 214,00 mm
A4: Code: | B4: 6517-05-0224 | H4: Gesloten formaat | I4: 80,00 x 27 mm
A5: Type | H5: Kleur R/V | I5: 1/1
H6: Grammage | I6: 40gr
H7: Status | I7: A
A8: Ordernr | B8: PBnr PP | C8: Voorraadbon | D8: Leveringsdatum | E8: Te produceren | F8: Af te roepen | G8: Uit welke | H8: Reëel geproduceerd | I8: Reëel geleverd | J8: Resterende stock
A9: klant | C9: Afroepbon | E9: aantal | F9: aantal | G9: Voorraadbon | H9: aantal | I9: aantal | J9: per VB
A10: test | B10: 296795 | C10: Voorraadbon | D10: 2011-10-18 | E10: 19326 | H10: 19080 | J10: =H10-I10 -> 19080
A11: test | B11: 298120 | C11: Afroepbon | D11: 2011-10-25 | F11: 19326 | G11: 296795 | I11: 19080 | J11: -19080
A12: test | B12: 298727 | C12: Voorraadbon | D12: 2011-11-10 | E12: 23040 | H12: 25560 | J12: 25560
A13: test | B13: 298895 | C13: Afroepbon | D13: 2011-11-17 | F13: 2880 | G13: 298727 | I13: 2880 | J13: -2880
A14: test | B14: 300659 | C14: Afroepbon | D14: 2011-12-30 | F14: 11520 | G14: 298727 | I14: 11520 | J14: -11520
A15: test | B15: 301419 | C15: Afroepbon | D15: 2012-01-16 | F15: 2880 | G15: 298727 | I15: 2880 | J15: -2880
A16: test | B16: 301832 | C16: Voorraadbon | D16: 2012-02-07 | E16: 66240 | H16: 71280 | J16: 71280
A17: test | B17: 302535 | C17: Afroepbon | D17: 2012-02-21 | F17: 20160 | G17: 298727+301832 | I17: 20160 | J17: -20160
A18: test | B18: 305018 | C18: Afroepbon | D18: 2012-04-03 | F18: 40320 | G18: 301832 | I18: 40320 | J18: -40320
A19: test | B19: 306113 | C19: Voorraadbon | D19: 2012-07-03 | E19: 54720 | H19: 63360 | J19: 63360
A20: test | B20: 308789 | C20: Afroepbon | D20: 2012-07-31 | F20: 46080 | G20: 301832 + 306113 | I20: 46040 | J20: -46040
A21: test | B21: 312864 | C21: Afroepbon | D21: 2012-11-06 | F21: 14400 | G21: 306113 | I21: 14400 | J21: -14400
A22: test | B22: 314253 | C22: Afroepbon | D22: 2013-01-08 | F22: 21960 | G22: 306113 | I22: 21960 | J22: =H22-I22 -> -21960
A23: test | B23: 314662 | C23: Voorraadbon | D23: 2013-02-12 | E23: 16000 | H23: 18480 | J23: 18480
A24: test | B24: 318102 | C24: Afroepbon | D24: 2013-03-26 | F24: 11520 | G24: 314662 | I24: 11520 | J24: -11520
A25: test | B25: 318064 | C25: Voorraadbon | D25: 2013-03-26 | E25: 73640 | H25: 73640 | J25: 73640
A26: test | B26: 318758 | C26: Afroepbon | D26: 2013-04-02 | F26: 28800 | G26: 314662+318064 | I26: 28800 | J26: -28800
A27: test | B27: 321852 | C27: Afroepbon | D27: 2013-07-02 | F27: 5760 | G27: 318064 | I27: 5760 | J27: -5760
A28: test | B28: 323277 | C28: Afroepbon | D28: 2013-07-23 | F28: 20160 | G28: 318064 | I28: 20160 | J28: =H28-I28 -> -20160
A29: test | B29: 324402 | C29: Afroepbon | D29: 2013-09-03 | F29: 25960 | G29: 318064 | I29: 25920 | J29: =H29-I29 -> -25920
J30: =SUM(J10:J29) -> 0
A31: 6517-05-0224 | G31: TOTAAL : | H31: =SUM(H10:H30) -> 271400 | I31: =SUM(I10:I30) -> 271400 | J31: =H31-I31 -> 0
I35: Date : 26-08-2011
A36: Beschrijving artikel (PPnr 55438) | H36: Open formaat | I36: 478,00 x 214,00 mm
A37: Code: | B37: 720R-01-0223 | H37: Gesloten formaat | I37: 80,00 x 27 mm
A38: Type | H38: Kleur R/V | I38: 2/2
H39: Grammage | I39: 40gr
H40: Status | I40: A
A41: Ordernr | B41: PBnr PP | C41: Voorraadbon | D41: Leveringsdatum | E41: Te produceren | F41: Af te roepen | G41: Uit welke | H41: Reëel geproduceerd | I41: Reëel geleverd | J41: Resterende stock
A42: klant | C42: Afroepbon | E42: aantal | F42: aantal | G42: Voorraadbon | H42: aantal | I42: aantal | J42: per VB
A43: test | B43: 296793 | C43: Voorraadbon | D43: 2011-10-19 | E43: 103680 | H43: 103680 | J43: =H43-I43 -> 103680
A44: test | B44: 298092 | C44: Afroepbon | D44: 2011-10-26 | F44: 80640 | G44: 296793 | I44: 80640 | J44: -80640
A45: test | B45: 298733 | C45: Voorraadbon | D45: 2011-12-23 | E45: 69120 | H45: 72000 | J45: 72000
A46: test | B46: 305021 | C46: Afroepbon | D46: 2012-04-24 | F46: 95040 | G46: 296793 + 298733 | I46: 95040 | J46: -95040
A47: test | B47: 306107 | C47: Voorraadbon | D47: 2012-06-12 | E47: 115200 | H47: 119040 | J47: 119040
A48: test | B48: 307800 | C48: Afroepbon | D48: 2012-07-10 | F48: 66240 | G48: 306107 | I48: 66240 | J48: -66240
A49: test | B49: 308755 | C49: Afroepbon | D49: 2012-07-31 | F49: 40320 | G49: 306107 | I49: 40320 | J49: -40320
A50: test | B50: 306109 | C50: Voorraadbon | D50: 2012-08-07 | E50: 265000 | H50: 266880 | J50: 266880
A51: test | B51: 308857 | C51: Afroepbon | D51: 2012-07-31 | F51: 17280 | G51: 306107 + 306109 | I51: 17280 | J51: -17280
A52: test | B52: 309671 | C52: Afroepbon | D52: 2012-08-28 | F52: 28800 | G52: 306109 | I52: 28800 | J52: -28800
A53: test | B53: 310531 | C53: Afroepbon | D53: 2012-09-11 | F53: 80640 | G53: 306109 | I53: 80640 | J53: -80640
A54: test | B54: 310565 | C54: Afroepbon | D54: 2012-10-02 | F54: 89280 | G54: 306109 | I54: 89280 | J54: -89280
A55: test | B55: 313863 | C55: Afroepbon | D55: 2012-12-11 | F55: 5760 | G55: 306109 | I55: 5760 | J55: -5760
A56: test | B56: 314252 | C56: Afroepbon | D56: 2012-12-18 | F56: 57600 | G56: 306109 | I56: 57600 | J56: -57600
A57: test | B57: 313315 | C57: Voorraadbon | D57: 2013-01-29 | E57: 66240 | H57: 70200 | J57: 70200
A58: test | B58: 316535 | C58: Afroepbon | D58: 2013-02-19 | F58: 20160 | G58: 313315 | I58: 20160 | J58: -20160
A59: test | B59: 319845 | C59: Afroepbon | D59: 2013-05-07 | F59: 50040 | G59: 313315 | I59: 50040 | J59: =H59-I59 -> -50040
A60: test | B60: 322689 | C60: Voorraadbon | D60: 2013-08-06 | E60: 54720 | H60: 54720 | J60: 54720
A61: test | B61: 323158 | C61: Afroepbon | D61: 2013-08-13 | F61: 48960 | G61: 322689 | I61: 48960 | J61: -48960
A62: test | B62: 322690 | C62: Voorraadbon | D62: 2013-10-15 | E62: 57600 | H62: 57600 | J62: 57600
A63: test | B63: 325719 | C63: Afroepbon | D63: 2013-10-15 | F63: 23040 | G63: 322689+322690 | I63: 23040 | J63: -23040
A64: test | B64: 326448 | C64: Afroepbon | D64: 2013-10-29 | F64: 25920 | G64: 322690 | I64: 25920 | J64: =H64-I64 -> -25920
A65: test | B65: 323558 | C65: Voorraadbon | D65: 2013-10-15 | E65: 23040 | H65: 23040 | J65: =H65-I65 -> 23040
A66: test | B66: xxx | C66: Afroepbon | D66: 2014-02-11 | F66: 43200 | G66: 322690+323558
A67: test | B67: 326479 | C67: Voorraadbon | D67: 2013-12-23 | E67: 57600 | H67: 57600 | J67: 57600
J68: =SUM(J43:J67) -> 95040
A69: 720R-01-0223 | G69: TOTAAL : | H69: =SUM(H43:H68) -> 824760 | I69: =SUM(I43:I68) -> 729720 | J69: =H69-I69 -> 95040
I73: Date : 26-08-2011
A75: Beschrijving artikel (PPnr 55744) | H75: Open formaat | I75: 478,00 x 214,00 mm
A76: Code: | B76: 9F9G-01-1223 | H76: Gesloten formaat | I76: 80,00 x 27 mm
A77: Type | H77: Kleur R/V | I77: 1/0
H78: Grammage | I78: 40gr
H79: Status | I79: A
A80: Ordernr | B80: PBnr PP | C80: Voorraadbon | D80: Leveringsdatum | E80: Te produceren | F80: Af te roepen | G80: Uit welke | H80: Reëel geproduceerd | I80: Reëel geleverd | J80: Resterende stock
A81: klant | C81: Afroepbon | E81: aantal | F81: aantal | G81: Voorraadbon | H81: aantal | I81: aantal | J81: per VB
A83: test | B83: 296789 | C83: Voorraadbon | D83: 2011-11-21 | E83: 8640 | H83: 8640 | J83: =H83-I83 -> 8640
A84: test | B84: 302350 | C84: Afroepbon | D84: 2012-02-15 | F84: 8640 | G84: 296789 | I84: 8640 | J84: -8640
A85: test | B85: 306118 | C85: Voorraadbon | D85: 2012-07-03 | E85: 20160 | H85: 20160 | J85: 20160
A86: test | B86: 307063 | C86: Afroepbon | D86: 2012-06-19 | F86: 8640 | G86: 306118 | I86: 8640 | J86: -8640
A87: test | B87: 311083 | C87: Afroepbon | D87: 2012-10-02 | F87: 11520 | G87: 306118 | I87: 11520 | J87: -11520
A88: test | B88: 311394 | C88: Voorraadbon | D88: 2012-10-16 | E88: 11520 | H88: 13320 | J88: 13320
A89: test | B89: 314652 | C89: Afroepbon | D89: 2013-01-22 | F89: 5760 | G89: 311394 | I89: 5760 | J89: =H89-I89 -> -5760
A90: test | B90: 319844 | C90: Afroepbon | D90: 2013-05-07 | F90: 7560 | G90: 311394 | I90: 7560 | J90: =H90-I90 -> -7560
J91: =SUM(J83:J90) -> 0
A93: 9F9G-01-1223 | G93: TOTAAL : | H93: =SUM(H83:H91) -> 42120 | I93: =SUM(I83:I91) -> 42120 | J93: =H93-I93 -> 0
I97: Date : 26-08-2011
A99: Beschrijving artikel (PPnr 55714) | H99: Open formaat | I99: 478,00 x 214,00 mm
A100: Code: | B100: 2W6W-01-0221 | H100: Gesloten formaat | I100: 80,00 x 27 mm
A101: Type | H101: Kleur R/V | I101: 1/1
H102: Grammage | I102: 40gr
H103: Status | I103: A
A104: Ordernr | B104: PBnr PP | C104: Voorraadbon | D104: Leveringsdatum | E104: Te produceren | F104: Af te roepen | G104: Uit welke | H104: Reëel geproduceerd | I104: Reëel geleverd | J104: Resterende stock
A105: klant | C105: Afroepbon | E105: aantal | F105: aantal | G105: Voorraadbon | H105: aantal | I105: aantal | J105: per VB
A107: test | B107: 296786 | C107: Voorraadbon | D107: 2011-11-18 | E107: 8640 | H107: 8640 | J107: =H107-I107 -> 8640
A108: test | B108: 299795 | C108: Afroepbon | D108: 2011-12-06 | F108: 5760 | G108: 296786 | I108: 5760 | J108: -5760
A109: test | B109: 301842 | C109: Voorraadbon | D109: 2012-02-07 | E109: 8640 | H109: 8640 | J109: 8640
A110: test | B110: 302261 | C110: Afroepbon | D110: 2012-02-14 | F110: 5760 | G110: 296786+301842 | I110: 5760 | J110: -5760
A111: test | B111: 304100 | C111: Afroepbon | D111: 2012-04-03 | F111: 2880 | G111: 301842 | I111: 2880 | J111: -2880
A112: test | B112: 309223 | C112: Voorraadbon | D112: 2012-10-15 | E112: 11520 | H112: 11520 | J112: 11520
A113: test | B113: 311148 | C113: Afroepbon | D113: 2012-10-09 | F113: 5760 | G113: 301842 + 309223 | I113: 5760 | J113: -5760
A114: test | B114: 319843 | C114: Afroepbon | D114: 2013-05-14 | F114: 8640 | G114: 309223 | I114: 8640 | J114: =H114-I114 -> -8640
J115: =SUM(J107:J114) -> 0
A117: 2W6W-01-0221 | G117: TOTAAL : | H117: =SUM(H107:H115) -> 28800 | I117: =SUM(I107:I115) -> 28800 | J117: =H117-I117 -> 0
I121: Date : 26-08-2011
A123: Beschrijving artikel (PPnr 55254) | H123: Open formaat | I123: 478,00 x 214,00 mm
A124: Code: | B124: 9F9G-01-0223 | H124: Gesloten formaat | I124: 80,00 x 27 mm
A125: Type | H125: Kleur R/V | I125: 1/1
H126: Grammage | I126: 40gr
H127: Status | I127: A
A128: Ordernr | B128: PBnr PP | C128: Voorraadbon | D128: Leveringsdatum | E128: Te produceren | F128: Af te roepen | G128: Uit welke | H128: Reëel geproduceerd | I128: Reëel geleverd | J128: Resterende stock
A129: klant | C129: Afroepbon | E129: aantal | F129: aantal | G129: Voorraadbon | H129: aantal | I129: aantal | J129: per VB
A131: test | B131: 296784 | C131: Voorraadbon | D131: 2011-11-10 | E131: 28800 | H131: 28800 | J131: =H131-I131 -> 28800
A132: test | B132: 299311 | C132: Afroepbon | D132: 2011-11-23 | F132: 23040 | G132: 296784 | I132: 23040 | J132: -23040
A133: test | B133: 300801 | C133: Voorraadbon | D133: 2012-01-10 | E133: 57600 | H133: 59160 | J133: 59160
A134: test | B134: 300855 | C134: Afroepbon | D134: 2012-01-17 | F134: 31680 | G134: 296784+300801 | I134: 31680 | J134: -31680
A135: test | B135: 305077 | C135: Afroepbon | D135: 2012-04-10 | F135: 33240 | G135: 300801 | I135: 33240 | J135: -33240
A136: test | B136: 306117 | C136: Voorraadbon | D136: 2012-05-22 | E136: 89280 | H136: 89280 | J136: 89280
A137: test | B137: 306178 | C137: Afroepbon | D137: 2012-05-29 | F137: 34560 | G137: 306117 | I137: 34560 | J137: -34560
A138: test | B138: 308725 | C138: Afroepbon | D138: 2012-07-24 | F138: 14400 | G138: 306117 | I138: 14400 | J138: -14400
A139: test | B139: 309419 | C139: Afroepbon | D139: 2012-08-14 | F139: 40320 | G139: 306117 | I139: 40320 | J139: -40320
A140: test | B140: 314654 | C140: Voorraadbon | D140: 2013-02-05 | E140: 34560 | H140: 38400 | J140: 38400
A141: test | B141: 315744 | C141: Afroepbon | D141: 2013-02-12 | F141: 17280 | G141: 314654 | I141: 17280 | J141: -17280
A142: test | B142: 317605 | C142: Afroepbon | D142: 2013-03-12 | F142: 21120 | G142: 314654 | I142: 21120 | J142: -21120
J143: =SUM(J131:J142) -> 0
A145: 9F9G-01-0223 | G145: TOTAAL : | H145: =SUM(H131:H143) -> 215640 | I145: =SUM(I131:I143) -> 215640 | J145: =H145-I145 -> 0

Sheet blanco
